bitfinex/quotes_ETHUSD_20250725
["timestamp","ask_amount","ask_price","bid_price","bid_amount"]
[1753476192670,3.0,3691.9,3691.4,0.24699819]
[1753476192892,0.0114543,3692.2,3691.5,1.17159819]
[1753476193076,0.0114543,3692.2,3691.6,0.71249819]
[1753476193377,2.70864253,3691.9,3691.7,0.24699819]
[1753476193580,0.44423968,3691.9,3691.8,0.24699819]
[1753476193785,0.0114543,3692.2,3691.8,0.71249819]
[1753476194104,0.0114543,3692.2,3691.9,0.71249819]
[1753476194105,2.70855904,3692.0,3691.9,0.71249819]
[1753476194290,0.4444,3692.0,3691.1,0.4591]
[1753476194495,2.70875343,3691.8,3691.3,0.4655]
[1753476194805,2.70875343,3691.8,3691.4,0.4655]
[1753476195004,2.70877555,3691.8,3691.4,0.4655]
[1753476195201,2.70863295,3691.9,3691.4,0.4655]
[1753476195404,2.70863241,3691.9,3691.4,0.4655]
[1753476195611,0.4444,3691.8,3691.0,1.2772]
[1753476195902,0.4444,3691.8,3690.8,0.49259439]
[1753476195903,2.70914659,3691.2,3690.8,0.49259439]
[1753476196403,2.70923319,3691.1,3690.8,0.4655]
[1753476196606,0.915,3691.6,3690.8,0.4655]
[1753476196794,2.70928151,3691.1,3690.8,0.4655]
[1753476197003,2.70928151,3691.1,3690.7,0.02709513]
[1753476197004,0.20707087,3691.6,3690.4,0.8006]
[1753476197202,3.50168747,3690.8,3689.9,0.8006]
[1753476197404,2.70988022,3690.2,3689.9,0.8006]
[1753476197610,2.70988022,3690.2,3689.5,0.4591]
[1753476197611,2.70988022,3690.2,3689.5,0.8006]
[1753476197916,3.15428022,3690.2,3689.5,0.8006]
[1753476198115,2.70988022,3690.2,3689.6,0.0271032]
[1753476198417,2.70988022,3690.2,3689.5,0.8006]
[1753476198620,2.7094281,3690.9,3690.2,3.51046434]
[1753476198817,2.7093197,3691.0,3690.3,4.34900885]
[1753476198994,2.7093197,3691.0,3690.4,0.49259733]
[1753476199192,0.7922,3691.4,3690.4,0.49259733]
[1753476199418,1.12207087,3691.6,3690.8,0.1352]
[1753476199419,2.70907753,3691.3,3690.8,0.1352]
[1753476199619,0.7922,3691.8,3691.2,0.1352]
[1753476199824,2.70876644,3691.8,3691.3,0.8006]
[1753476200023,0.1352,3692.1,3691.3,0.8006]
[1753476200024,2.70865416,3691.9,3691.6,0.1352]
[1753476200318,2.71988373,3692.2,3692.0,0.1352]
[1753476200619,2.70848875,3692.1,3692.0,0.1352]
[1753476200787,2.7198699,3692.2,3692.0,0.1352]
[1753476201485,2.70848568,3692.1,3692.0,0.1352]
[1753476201896,2.70848568,3692.1,3692.0,0.9342]
[1753476202109,2.70848568,3692.1,3692.0,0.1352]
[1753476202483,2.70905719,3691.4,3690.8,0.829]
[1753476202685,2.70920906,3691.2,3690.8,0.829]
[1753476202891,2.70920906,3691.2,3691.1,0.1352]
[1753476203718,3.16790906,3691.2,3691.1,0.1352]
[1753476204820,2.70944452,3690.8,3690.6,0.001]
[1753476205023,0.9545,3691.2,3690.9,0.1352]
[1753476205359,2.70922493,3691.1,3690.7,0.1352]
[1753476205519,0.9545,3691.6,3690.9,0.4669]
[1753476205720,0.9545,3691.6,3690.6,0.001]
[1753476205721,2.70921947,3691.1,3691.0,0.1352]
[1753476205932,2.70945753,3690.8,3690.6,0.001]
[1753476206245,2.70930103,3691.0,3690.7,0.1352]
[1753476206246,2.70929287,3691.0,3690.7,0.1352]
[1753476206446,2.70937503,3690.9,3690.7,0.6021]
[1753476206615,0.77,3691.3,3690.9,0.1352]
[1753476206616,2.70930124,3691.0,3690.9,0.1352]
[1753476206813,2.70930124,3691.0,3690.8,0.6021]
[1753476207123,2.70850907,3692.1,3690.9,0.7995]
[1753476207331,0.4701543,3692.2,3691.0,0.4669]
[1753476207332,2.70863241,3691.9,3691.0,0.4669]
[1753476207541,2.70863241,3691.9,3690.9,0.7995]
[1753476207542,0.9545,3691.8,3690.9,0.7995]
[1753476207741,0.9545,3691.7,3690.7,0.4669]
[1753476207949,2.70916926,3691.2,3690.6,0.001]
[1753476208142,0.7559,3691.9,3690.6,0.001]
[1753476208343,2.7089772,3691.5,3690.7,3.1764131]
[1753476208561,2.70909115,3691.3,3690.6,3.18205878]
[1753476208848,3.0,3692.3,3690.6,3.18205878]
[1753476208849,0.85631871,3693.0,3691.7,2.70873987]
[1753476209146,0.85631871,3693.0,3691.8,0.8311]
[1753476209147,2.70837284,3692.3,3691.8,0.8311]
[1753476209522,2.70827909,3692.4,3691.8,1.298]
[1753476209848,2.70827909,3692.4,3691.9,0.4669]
[1753476210030,2.70821995,3692.5,3691.9,0.4669]
[1753476210216,2.70826635,3692.4,3692.0,0.4669]
[1753476210409,2.70826635,3692.4,3692.0,0.9384]
[1753476210618,2.70826635,3692.4,3692.1,0.4669]
[1753476211142,3.0,3692.8,3692.1,0.9384]
[1753476211346,2.70820251,3692.5,3692.1,0.4669]
[1753476211536,2.70813803,3692.6,3692.1,0.4669]
[1753476211731,4.63131871,3693.0,3692.1,0.4669]
[1753476211916,2.70827291,3692.4,3692.1,0.4669]
[1753476212115,2.6274543,3692.2,3692.1,0.4669]
[1753476213231,5.33586662,3692.2,3692.1,0.4669]
[1753476213438,2.6274543,3692.2,3692.1,0.4669]
[1753476213633,0.0114543,3692.2,3691.8,0.8311]
[1753476213845,5.33289586,3692.2,3691.8,1.298]
[1753476214418,2.70848795,3692.1,3691.8,1.298]
[1753476214641,2.70856905,3692.0,3691.8,1.298]
[1753476215239,2.70850161,3692.1,3691.8,1.298]
[1753476215848,5.3328946,3692.2,3691.8,0.8311]
[1753476216055,5.3328946,3692.2,3691.9,0.4669]
[1753476217057,2.70848763,3692.1,3691.8,0.8311]
[1753476217426,2.70848763,3692.1,3692.0,0.1352]
[1753476217832,2.70848763,3692.1,3691.3,0.8249]
[1753476217833,3.66298763,3692.1,3691.3,0.8249]
[1753476218032,3.16725904,3692.0,3691.8,0.1352]
[1753476218352,2.70863241,3691.9,3691.8,0.1352]
[1753476218555,5.77333241,3691.9,3691.8,0.1352]
[1753476218721,2.606,3691.9,3691.3,0.8249]
[1753476218922,2.70870578,3691.8,3691.6,0.1352]
[1753476219135,2.70877915,3691.7,3691.6,0.1352]
[1753476219419,0.0114543,3692.2,3691.7,0.4669]
[1753476219627,5.31350855,3692.1,3691.8,0.4669]
[1753476219851,5.31350855,3692.1,3691.9,0.4669]
[1753476219852,2.7085628,3692.0,3691.9,0.4669]
[1753476220151,5.31351456,3692.1,3691.6,0.4669]
[1753476220324,2.70855904,3692.0,3691.9,0.1352]
[1753476220525,2.605,3692.1,3691.9,0.1352]
[1753476220526,5.313511,3692.1,3691.9,0.1352]
[1753476220855,2.70855904,3692.0,3691.9,0.1352]
[1753476221222,2.603,3692.0,3691.9,0.6021]
[1753476221454,2.603,3692.0,3691.9,0.1352]
[1753476221656,5.31155904,3692.0,3691.9,0.1352]
[1753476222152,2.603,3692.0,3691.9,0.1352]
[1753476222924,5.31155904,3692.0,3691.9,0.1352]
[1753476223257,3.0617,3692.0,3691.5,0.4669]
[1753476223446,2.601,3691.9,3691.8,0.1352]
[1753476223649,2.6,3691.9,3691.8,0.4669]
[1753476223954,2.6,3691.9,3691.8,0.6021]
[1753476224942,2.6,3691.9,3691.8,0.1352]
[1753476225364,0.0114543,3692.2,3691.8,0.6021]
[1753476225547,2.601,3691.9,3691.8,0.6067]
[1753476225855,2.601,3691.9,3691.6,2.70880232]
[1753476226060,2.601,3691.9,3691.8,0.1352]
[1753476226426,0.0114543,3692.2,3691.8,0.6021]
[1753476226629,0.0114543,3692.2,3691.9,0.4669]
[1753476226927,2.597,3692.1,3691.9,0.4669]
[1753476227243,2.597,3692.1,3691.6,2.70884798]
[1753476227443,2.597,3692.1,3692.0,0.1352]
[1753476227840,0.0114543,3692.2,3692.0,0.1352]
[1753476228038,2.596,3692.1,3692.0,0.6021]
[1753476228387,0.0114543,3692.2,3692.0,1.3907]
[1753476228533,0.0114543,3692.2,3692.1,3.64688568]
[1753476228735,2.6074543,3692.2,3692.1,4.37481741]
[1753476228935,0.0114543,3692.2,3692.1,4.37481741]
[1753476229558,0.0114543,3692.2,3692.0,0.9238]
[1753476230092,0.0114543,3692.2,3692.1,0.4552]
[1753476231258,2.6064543,3692.2,3692.1,0.4552]
[1753476231464,2.6044543,3692.2,3692.1,0.4552]
[1753476231785,0.0114543,3692.2,3692.1,0.4552]
[1753476232750,0.0114543,3692.2,3692.1,0.8965]
[1753476233694,0.0114543,3692.2,3692.1,4.32873391]
[1753476237272,0.0114543,3692.2,3692.1,3.88743391]
[1753476237476,0.0114543,3692.2,3692.1,4.70323391]
[1753476237678,0.39761871,3693.0,3692.1,1.64733308]
[1753476237844,0.39761871,3693.0,3692.9,0.1352]
[1753476238646,0.39761871,3693.0,3692.9,0.5904]
[1753476238842,0.39761871,3693.0,3692.9,4.48807452]
[1753476239246,0.39761871,3693.0,3692.9,4.92937452]
[1753476240141,0.39761871,3693.0,3692.9,2.22147558]
[1753476240346,0.39761871,3693.0,3692.9,4.48807452]
[1753476240563,0.39761871,3693.0,3692.9,1.78017558]
[1753476240887,0.39761871,3693.0,3692.9,4.48807452]
[1753476241384,0.39761871,3693.0,3692.9,4.92937452]
[1753476241785,0.39761871,3693.0,3692.9,1.78017558]
[1753476241988,0.39761871,3693.0,3692.9,4.48807452]
[1753476242769,0.39761871,3693.0,3692.9,1.78017558]
[1753476243061,0.39761871,3693.0,3692.9,1.4062]
[1753476243267,0.39761871,3693.0,3692.9,4.11409894]
[1753476244051,0.39761871,3693.0,3692.9,4.55539894]
[1753476244588,0.39761871,3693.0,3692.9,0.951]
[1753476244791,0.39761871,3693.0,3692.9,4.11409894]
[1753476245091,0.39761871,3693.0,3692.9,5.24031826]
[1753476245387,0.39761871,3693.0,3692.9,4.79901826]
[1753476245885,0.39761871,3693.0,3692.9,5.24031826]
[1753476246098,0.39761871,3693.0,3692.9,4.79901826]
[1753476246250,0.39761871,3693.0,3692.9,5.00009691]
[1753476247058,0.39761871,3693.0,3692.9,5.44139691]
[1753476247404,0.39961871,3693.0,3692.9,5.00009691]
[1753476248064,0.39961871,3693.0,3692.9,0.82011932]
[1753476248261,0.84151871,3693.0,3692.9,0.1352]
[1753476248815,0.39961871,3693.0,3692.9,0.1352]
[1753476251893,2.579,3693.8,3692.9,0.1352]
[1753476251894,0.002,3693.8,3693.0,0.827]
[1753476252096,0.002,3693.8,3692.9,3.19147898]
[1753476252097,0.002,3693.8,3693.7,3.66951245]
[1753476252268,0.002,3693.8,3693.7,6.91027705]
[1753476252594,0.004,3694.9,3693.7,6.91027705]
[1753476252595,0.004,3694.9,3694.8,3.53350644]
[1753476252965,0.004,3694.9,3694.8,4.12390644]
[1753476253472,0.004,3694.9,3694.8,0.9622]
[1753476253681,0.004,3694.9,3694.8,3.66870644]
[1753476253874,0.004,3694.9,3694.8,4.12390644]
[1753476254199,0.004,3694.9,3694.8,5.13565679]
[1753476254400,0.004,3694.9,3694.8,5.57695679]
[1753476254560,0.004,3694.9,3694.8,5.54989173]
[1753476256792,0.004,3694.9,3694.8,1.11988529]
[1753476256997,0.004,3694.9,3694.8,0.1352]
[1753476256998,0.934,3694.9,3694.8,0.1352]
[1753476257215,0.004,3694.9,3694.8,2.84170644]
[1753476257522,0.004,3694.9,3694.8,3.3239715]
[1753476258323,0.004,3694.9,3694.8,0.5904]
[1753476258619,0.004,3694.9,3694.8,0.1352]
[1753476259318,0.934,3694.9,3694.8,0.1352]
[1753476259705,3.64043319,3694.9,3694.8,0.1352]
[1753476259891,5.0416061,3694.9,3694.8,0.1352]
[1753476260082,2.70687742,3694.3,3693.6,2.70733703]
[1753476260282,0.4329,3694.2,3693.6,2.70733703]
[1753476260833,3.13985571,3694.2,3694.1,0.1352]
[1753476261290,3.62345571,3694.2,3694.1,0.1352]
[1753476261487,4.44315571,3694.2,3694.1,0.1352]
[1753476261689,2.70731995,3693.7,3693.1,1.2831]
[1753476261890,0.4329,3693.6,3692.8,0.7534]
[1753476262100,0.8132,3693.5,3693.4,0.1352]
[1753476262415,0.9165,3693.6,3693.4,0.1352]
[1753476262416,2.70739362,3693.6,3693.4,0.1352]
[1753476262601,4.43681213,3694.0,3693.4,0.1352]
[1753476262816,1.7297,3694.0,3693.4,0.62037532]
[1753476262980,0.1352,3694.4,3693.9,0.1352]
[1753476262981,0.4329,3694.3,3693.9,0.1352]
[1753476263183,1.2968,3694.4,3693.9,0.1352]
[1753476263184,0.8132,3694.4,3693.9,0.1352]
[1753476263418,2.574,3694.6,3694.2,0.1352]
[1753476263591,2.574,3694.6,3694.0,3.16519203]
[1753476263777,1.2461,3694.8,3694.5,0.1352]
[1753476263983,3.0069,3694.8,3694.5,0.1352]
[1753476264488,0.4329,3694.7,3694.5,0.1352]
[1753476264696,0.30109,3694.7,3694.5,0.1352]
[1753476264991,0.9165,3694.6,3694.5,0.1352]
[1753476265191,3.62315295,3694.6,3694.5,0.1352]
[1753476265715,6.19515295,3694.6,3694.5,0.1352]
[1753476265888,2.70681329,3694.4,3693.7,2.70728802]
[1753476266079,2.70681329,3694.4,3694.3,0.1352]
[1753476266284,3.19041329,3694.4,3694.3,0.1352]
[1753476266483,4.81932891,3694.4,3694.3,0.1352]
[1753476266720,2.54541562,3694.4,3694.2,0.1352]
[1753476266886,2.7073055,3693.8,3693.1,2.70768313]
[1753476267084,1.0517,3694.3,3693.8,0.1352]
[1753476267085,2.70716586,3693.9,3693.8,0.1352]
[1753476267325,0.7519,3693.8,3693.6,0.1352]
[1753476267481,2.572,3693.7,3693.1,0.48517752]
[1753476267684,2.572,3693.7,3693.2,2.70762449]
[1753476267986,2.572,3693.7,3693.6,0.1352]
[1753476268605,5.71221245,3693.7,3693.6,0.1352]
[1753476268807,3.0049,3693.7,3693.6,0.1352]
[1753476269201,6.19581245,3693.7,3693.6,0.1352]
[1753476269509,7.16130269,3693.7,3693.6,0.1352]
[1753476269684,2.70759134,3693.4,3692.7,3.52852961]
[1753476269916,2.57,3693.3,3692.8,2.7079592]
[1753476270085,0.4329,3693.5,3693.2,0.1352]
[1753476270284,3.0029,3693.4,3693.2,0.1352]
[1753476270589,3.0029,3693.4,3692.8,3.16602519]
[1753476270821,3.0029,3693.4,3693.3,0.1352]
[1753476271128,6.19403235,3693.4,3693.3,0.1352]
[1753476271789,6.19403235,3693.4,3692.4,0.48518265]
[1753476271790,2.70783035,3693.0,3692.4,0.4581]
[1753476272155,2.70776903,3693.1,3692.4,3.16634964]
[1753476272326,2.70788764,3693.0,3692.9,0.1352]
[1753476272620,0.817,3692.5,3692.1,0.001]
[1753476272825,2.70841232,3692.2,3692.1,0.001]
[1753476273029,3.52541232,3692.2,3692.1,0.001]
[1753476273190,7.99191232,3692.2,3692.1,0.001]
[1753476274086,10.56291232,3692.2,3692.1,0.001]
[1753476274285,12.17438872,3692.2,3692.1,0.001]
[1753476274510,9.60338872,3692.2,3692.1,0.001]
[1753476274715,12.17338872,3692.2,3692.1,1e-08]
[1753476274899,42.17338872,3692.2,3692.1,1e-08]
[1753476275527,12.17338872,3692.2,3692.1,1e-08]
[1753476275729,33.25892591,3691.5,3691.4,1e-08]
[1753476275935,33.25892591,3691.5,3690.7,0.001]
[1753476275936,3.38403968,3690.8,3690.7,1e-08]
[1753476276139,38.95803968,3690.8,3690.7,1e-08]
[1753476276301,39.39093968,3690.8,3690.7,1e-08]
[1753476276634,36.3841131,3690.7,3690.6,1e-08]
[1753476276793,41.2016131,3690.7,3690.6,1e-08]
[1753476276997,42.07862872,3690.7,3690.6,1e-08]
[1753476277592,32.7100271,3690.0,3689.9,1e-08]
[1753476277818,38.9586271,3690.0,3689.9,1e-08]
[1753476278033,39.8751271,3690.0,3689.9,1e-08]
[1753476280635,37.3011271,3690.0,3689.9,1e-08]
[1753476280929,40.54574376,3690.0,3689.9,1e-08]
[1753476281995,40.54674376,3690.0,3689.9,1e-08]
[1753476282196,2.71112918,3688.5,3688.4,0.31110001]
[1753476282400,5.28512918,3688.5,3688.4,0.31110001]
[1753476283201,5.28512918,3688.5,3688.4,0.75530001]
[1753476283202,2.572,3688.5,3688.4,0.75530001]
[1753476283401,5.28312918,3688.5,3688.4,0.75530001]
[1753476283608,5.28312918,3688.5,3688.4,0.31110001]
[1753476284044,5.28312918,3688.5,3687.7,0.4442]
[1753476284045,2.572,3688.5,3687.7,0.4442]
[1753476284233,2.71140413,3688.2,3687.8,0.4581]
[1753476284429,2.573,3688.1,3687.9,0.4442]
[1753476284646,1.6808,3688.9,3688.0,0.9023]
[1753476284831,2.71117646,3688.5,3688.0,0.9023]
[1753476285038,2.7109979,3688.7,3688.1,0.9023]
[1753476285039,5.28320949,3688.4,3688.1,0.9023]
[1753476285347,5.28320949,3688.4,3688.2,0.9023]
[1753476285545,5.28320949,3688.4,3688.2,0.4442]
[1753476285746,2.84640949,3688.4,3688.3,0.4581]
[1753476286046,2.571,3688.4,3688.3,0.9023]
[1753476286342,2.571,3688.4,3688.3,1.0375]
[1753476286715,1.06758,3688.9,3688.3,1.0375]
[1753476286915,2.71105816,3688.6,3688.3,1.0375]
[1753476287169,2.571,3688.5,3688.4,0.9023]
[1753476287322,2.71105816,3688.6,3688.4,0.4442]
[1753476287526,2.71102807,3688.7,3688.5,0.4581]
[1753476287749,2.571,3688.6,3688.4,0.4442]
[1753476287933,0.30328,3688.9,3688.5,0.4442]
[1753476288132,5.28095753,3688.8,3688.2,0.4442]
[1753476288336,2.71076921,3689.0,3688.1,3.53320751]
[1753476288337,5.28099203,3688.7,3688.5,0.1352]
[1753476288537,5.28099203,3688.7,3688.6,0.9023]
[1753476288849,2.57,3688.7,3688.6,0.9023]
[1753476289029,5.28098218,3688.7,3688.5,0.1352]
[1753476289224,2.71105568,3688.6,3688.5,0.1352]
[1753476289430,5.28099483,3688.7,3688.5,0.5933]
[1753476289949,2.57,3688.7,3688.6,0.4581]
[1753476290137,5.28098218,3688.7,3688.6,0.4581]
[1753476290652,2.57,3688.7,3688.6,0.4581]
[1753476291071,5.28098218,3688.7,3688.6,0.4581]
[1753476291273,2.57,3688.7,3688.6,0.4581]
[1753476291476,5.28098218,3688.7,3688.6,0.4581]
[1753476292185,2.71105568,3688.6,3688.5,0.1352]
[1753476292375,2.57,3688.7,3688.5,0.628]
[1753476292376,5.28100616,3688.7,3688.5,0.628]
[1753476292535,2.71100616,3688.7,3688.5,0.628]
[1753476292738,0.1352,3689.0,3688.6,0.4928]
[1753476293047,23.3898165,3690.3,3688.6,0.4928]
[1753476293048,2.71022361,3689.8,3689.2,2.71060808]
[1753476293385,0.67161666,3690.0,3689.5,0.7926]
[1753476293573,0.1352,3690.1,3689.6,0.1352]
[1753476293759,2.566,3689.9,3689.6,0.628]
[1753476293952,2.566,3689.9,3689.7,0.4498]
[1753476294153,2.566,3689.9,3689.6,0.1352]
[1753476294349,0.002,3693.8,3690.0,0.7926]
[1753476294549,0.002,3693.8,3692.1,2.70842714]
[1753476294550,2.70757536,3693.4,3692.1,2.70842714]
[1753476294760,2.70937639,3693.7,3692.2,3.45869138]
[1753476294761,0.1352,3693.2,3692.2,3.45869138]
[1753476294963,2.645,3693.1,3693.0,0.1352]
[1753476295273,2.645,3693.1,3692.6,0.4928]
[1753476295451,2.645,3693.1,3692.3,0.4498]
[1753476295452,0.1352,3693.3,3692.7,0.1352]
[1753476295649,2.644,3693.2,3692.7,0.628]
[1753476295876,2.643,3693.1,3692.8,0.4928]
[1753476296178,2.643,3693.0,3692.8,0.4928]
[1753476298072,2.642,3692.9,3692.8,0.4928]
[1753476298590,0.002,3694.6,3693.1,7.29494929]
[1753476298750,0.42345433,3696.7,3692.8,2.57624503]
[1753476298751,0.1352,3696.5,3694.8,3.52740644]
[1753476298951,1.035,3696.0,3694.8,3.6896715]
[1753476299287,1.035,3696.0,3694.8,5.80093936]
[1753476299449,0.5733,3696.5,3694.8,4.60520644]
[1753476299648,2.688,3695.4,3694.8,4.60520644]
[1753476299878,2.687,3695.6,3694.8,4.60520644]
[1753476300150,0.1352,3696.2,3694.8,4.60520644]
[1753476300350,2.687,3695.4,3694.8,1.8987]
[1753476300551,2.687,3695.4,3694.4,0.4928]
[1753476300755,0.4441,3695.3,3694.4,0.4928]
[1753476300951,2.70636509,3695.0,3694.4,0.4928]
[1753476301195,0.27503651,3694.9,3694.4,0.4928]
[1753476301483,2.687,3694.8,3693.9,0.4928]
[1753476301682,2.686,3694.7,3694.0,0.96967092]
[1753476301890,2.686,3694.7,3694.0,0.47687092]
[1753476302089,0.27503651,3694.9,3694.1,0.4928]
[1753476302293,2.685,3694.8,3694.1,0.51987019]
[1753476302890,0.004,3694.9,3694.8,2.70650644]
[1753476303106,3.903,3696.3,3694.8,2.70650644]
[1753476303107,0.0602,3698.0,3697.6,0.7925]
[1753476303455,0.0602,3698.0,3697.6,1.2853]
[1753476303654,0.0602,3698.0,3697.1,0.4928]
[1753476303850,2.7812,3698.0,3697.6,2.70442688]
[1753476304056,2.7802,3698.0,3697.8,2.7042923]
[1753476304387,0.0602,3698.0,3697.9,0.4928]
[1753476304594,0.0602,3698.0,3697.9,0.4888]
[1753476304797,0.0602,3698.0,3697.3,0.4498]
[1753476305173,2.7792,3698.0,3697.4,0.02704603]
[1753476305380,0.0602,3698.0,3697.1,0.7925]
[1753476305697,2.70437468,3697.8,3696.9,2.70496902]
[1753476305865,2.70439249,3697.7,3696.8,0.02705042]
[1753476306195,2.70483912,3697.1,3696.7,0.7551]
[1753476306398,2.70491763,3697.0,3696.7,0.7551]
[1753476306704,2.721,3697.6,3696.7,0.7551]
[1753476306854,2.721,3697.5,3696.4,0.4928]
[1753476307054,2.70526173,3696.5,3696.4,0.4928]
[1753476307507,2.7054813,3696.2,3696.1,0.8139]
[1753476307805,2.721,3696.7,3696.1,1.3067]
[1753476307971,2.70518855,3696.6,3695.6,1.2937]
[1753476308297,2.721,3696.7,3695.6,1.2937]
[1753476308298,2.70584733,3695.7,3695.6,1.2937]
[1753476308509,2.70601303,3695.5,3695.2,0.4928]
[1753476308702,2.719,3695.9,3695.3,0.4928]
[1753476308856,2.719,3695.9,3694.4,0.8067]
[1753476308857,2.719,3695.9,3694.7,0.4928]
[1753476309056,2.70650644,3694.8,3694.7,0.4928]
[1753476309494,2.70672621,3694.5,3694.4,0.8067]
[1753476309804,2.70687274,3694.3,3693.9,0.9426]
[1753476310002,2.70687274,3694.3,3694.0,0.4928]
[1753476310200,2.70694701,3694.2,3693.9,0.4498]
[1753476310500,2.70688177,3694.3,3694.1,0.4928]
[1753476310671,2.70694602,3694.2,3694.1,0.1352]
[1753476310876,2.70687942,3694.3,3694.1,0.1352]
[1753476311388,2.70687942,3694.3,3694.2,0.4928]
[1753476311806,2.70694602,3694.2,3694.1,0.1352]
[1753476312173,5.42294602,3694.2,3694.1,0.628]
[1753476312488,2.714,3694.3,3694.1,0.628]
[1753476312687,2.714,3694.2,3693.8,0.7511]
[1753476312890,2.70650383,3694.9,3693.8,0.7511]
[1753476312891,2.713,3694.1,3693.8,0.7511]
[1753476313094,2.70723465,3693.9,3693.4,0.4928]
[1753476313312,5.42007075,3694.1,3694.0,0.1352]
[1753476313524,2.7074092,3693.6,3693.3,1.3024]
[1753476314009,2.7074092,3693.6,3693.5,0.1352]
[1753476314210,2.70732909,3693.7,3693.5,0.1352]
[1753476314723,2.711,3694.2,3693.6,3.64997104]
[1753476315031,0.002,3694.4,3694.3,2.70687274]
[1753476315176,0.002,3694.4,3694.3,3.53857274]
[1753476315382,0.002,3694.4,3694.3,1.93656872]
[1753476315680,0.002,3694.4,3694.3,4.61637274]
[1753476316728,0.002,3694.4,3694.3,0.1352]
[1753476318015,0.002,3694.4,3694.3,3.33487274]
[1753476318819,0.002,3694.4,3694.3,0.628]
[1753476319349,0.002,3694.4,3694.3,3.33487274]
[1753476319840,0.002,3694.4,3694.3,0.1352]
[1753476321704,2.70879948,3694.4,3694.3,0.1352]
[1753476322011,3.1692,3694.4,3694.3,0.1352]
[1753476322314,2.705,3694.4,3694.3,0.1352]
[1753476322627,2.702,3694.4,3694.3,0.1352]
[1753476323025,2.702,3694.4,3693.2,0.498]
[1753476323026,4.18596031,3694.4,3693.2,0.498]
[1753476323213,2.70701052,3694.2,3693.4,2.70747021]
[1753476323416,5.40403463,3694.1,3693.4,2.70747445]
[1753476323641,0.002,3694.4,3693.5,0.498]
[1753476323845,0.002,3694.4,3694.3,2.70687274]
[1753476324449,0.002,3694.4,3694.3,3.53097274]
[1753476324650,0.002,3694.4,3694.3,4.52504146]
[1753476324854,0.002,3694.4,3694.3,5.15154701]
[1753476325033,1e-08,3694.4,3694.3,5.15154701]
[1753476325253,0.002,3695.2,3695.1,3.4688867]
[1753476325559,0.002,3695.2,3695.1,10.48472697]
[1753476325718,0.002,3695.2,3695.1,3.9668867]
[1753476326608,0.002,3695.2,3695.0,0.02706359]
[1753476326952,0.002,3695.2,3694.7,2.70654854]
[1753476327125,0.002,3695.2,3695.0,2.70635183]
[1753476327540,0.002,3695.2,3694.5,0.7626]
[1753476327733,0.002,3695.2,3694.9,2.70641153]
[1753476328543,0.002,3695.2,3694.7,2.7065722]
[1753476328743,0.002,3695.2,3695.1,2.7062867]
[1753476328938,0.002,3695.2,3695.1,2.73334956]
[1753476329138,0.002,3695.2,3695.1,3.23134956]
[1753476329343,0.002,3695.2,3695.1,3.6732867]
[1753476329740,0.002,3695.2,3695.1,2.7062867]
[1753476330063,0.002,3695.2,3695.1,3.2042867]
[1753476330841,0.002,3695.2,3695.1,3.70034956]
[1753476331232,0.002,3695.2,3695.1,5.52682784]
[1753476331233,1e-08,3695.2,3695.1,5.52682784]
[1753476331478,1e-08,3695.2,3695.1,8.52682784]
[1753476331777,1e-08,3695.2,3695.1,8.49976498]
[1753476332844,1e-08,3695.2,3695.1,9.04976498]
[1753476333179,0.4642,3697.2,3696.2,0.816]
[1753476333344,1.11661,3697.1,3696.5,2.70526151]
[1753476333538,0.9431,3697.1,3696.5,2.70526151]
[1753476333777,0.9431,3697.1,3697.0,0.1352]
[1753476334085,0.4642,3697.1,3697.0,0.1352]
[1753476334252,0.9431,3697.1,3697.0,0.1352]
[1753476334447,0.8931,3697.1,3697.0,0.1352]
[1753476334647,1.06161,3697.1,3697.0,0.1352]
[1753476335350,0.792,3697.4,3697.0,0.1352]
[1753476335552,0.4789,3697.3,3697.0,0.1352]
[1753476335963,0.792,3697.4,3697.0,0.1352]
[1753476336170,0.4789,3697.3,3697.0,0.1352]
[1753476336406,0.002,3698.7,3697.2,7.01584027]
[1753476336561,0.002,3698.7,3698.6,2.70372573]
[1753476336761,0.002,3698.7,3698.6,0.1352]
[1753476336968,0.4662,3698.7,3698.6,0.1352]
[1753476337283,4.41115263,3698.7,3698.6,0.1352]
[1753476337471,1.7075,3698.7,3698.5,0.1352]
[1753476337797,0.93495,3698.6,3698.5,0.1352]
[1753476338096,0.4642,3698.6,3698.5,0.1352]
[1753476338302,0.9431,3698.6,3698.5,0.1352]
[1753476338654,0.4642,3698.6,3698.5,0.1352]
[1753476338850,3.64682573,3698.6,3697.4,2.709]
[1753476339081,2.70426094,3697.9,3697.4,2.709]
[1753476339349,2.70426094,3697.9,3697.2,2.70473933]
[1753476339350,0.4642,3697.8,3697.2,2.70473933]
[1753476339556,0.4642,3697.8,3697.2,2.70471427]
[1753476339756,3.16851067,3697.8,3697.7,0.1352]
[1753476340007,3.4622859,3697.7,3696.2,0.498]
[1753476340163,3.462307,3697.7,3696.4,2.707]
[1753476340373,0.49462434,3697.6,3697.5,0.1352]
[1753476340693,0.95882434,3697.6,3697.5,0.1352]
[1753476340991,2.70410474,3698.1,3697.5,0.1352]
[1753476340992,0.7579,3698.3,3697.5,0.1352]
[1753476341154,0.7579,3698.3,3697.6,2.70439269]
[1753476341350,0.7579,3698.3,3697.4,2.70458827]
[1753476341351,0.002,3698.7,3697.7,0.498]
[1753476341654,0.4642,3698.6,3697.4,0.02704603]
[1753476341848,3.16794322,3698.6,3697.7,2.7043222]
[1753476342053,0.63524291,3698.5,3697.4,0.02704603]
[1753476342249,0.63524291,3698.5,3697.8,2.70424354]
[1753476342492,0.63524291,3698.5,3697.9,2.70423171]
[1753476342678,0.63524291,3698.5,3697.7,2.70433704]
[1753476342879,0.63524291,3698.5,3697.4,0.02704603]
[1753476342880,3.33904919,3698.5,3697.4,0.02704603]